[Event "Early-Titled-Tuesday-Blitz-February-20-2024"]
[Site "Chess.com"]
[Date "2024.02.20"]
[Round "4"]
[White "Resignify"]
[Black "TioCridineno"]
[Result "0-1"]
[WhiteElo "2214"]
[BlackElo "2410"]
[TimeControl "180+1"]
[EndTime "8:39:31 PST"]
[Termination "TioCridineno won on time"]

1. e4 {[%clk 0:03:00.9]} 1... c5 {[%clk 0:02:59.9]} 2. Nc3 {[%clk 0:03:00.5]}
2... a6 {[%clk 0:02:56.2]} 3. g3 {[%clk 0:03:00.7]} 3... b5 {[%clk 0:02:56.2]}
4. Bg2 {[%clk 0:03:00.3]} 4... Bb7 {[%clk 0:02:56.8]} 5. d3 {[%clk 0:02:58.9]}
5... e6 {[%clk 0:02:57]} 6. Nf3 {[%clk 0:02:56.1]} 6... Nc6 {[%clk 0:02:57]} 7.
O-O {[%clk 0:02:55.3]} 7... g6 {[%clk 0:02:54.8]} 8. Be3 {[%clk 0:02:50.8]} 8...
d6 {[%clk 0:02:54.7]} 9. Re1 {[%clk 0:02:49.7]} 9... Bg7 {[%clk 0:02:54.2]} 10.
e5 {[%clk 0:02:25.9]} 10... Nxe5 {[%clk 0:02:47.6]} 11. Nxe5 {[%clk 0:02:25.8]}
11... Bxg2 {[%clk 0:02:47.3]} 12. Nxf7 {[%clk 0:02:24.6]} 12... Kxf7 {[%clk
0:02:47.3]} 13. Kxg2 {[%clk 0:02:23.7]} 13... Qc7 {[%clk 0:02:46.6]} 14. Qf3+
{[%clk 0:02:23.1]} 14... Nf6 {[%clk 0:02:43.2]} 15. Ne4 {[%clk 0:02:13.1]} 15...
Qe7 {[%clk 0:02:32.8]} 16. Bg5 {[%clk 0:01:50.6]} 16... h6 {[%clk 0:02:32.3]}
17. Bxf6 {[%clk 0:01:29.3]} 17... Bxf6 {[%clk 0:02:31.8]} 18. Re3 {[%clk
0:01:23.1]} 18... e5 {[%clk 0:02:26.3]} 19. Nxf6 {[%clk 0:01:18.5]} 19... Qxf6
{[%clk 0:02:26.3]} 20. Qb7+ {[%clk 0:01:12.4]} 20... Qe7 {[%clk 0:02:26.3]} 21.
Rf3+ {[%clk 0:01:12]} 21... Ke6 {[%clk 0:02:26.5]} 22. Qe4 {[%clk 0:01:05.2]}
22... Rhg8 {[%clk 0:02:21]} 23. c4 {[%clk 0:01:03.6]} 23... Raf8 {[%clk
0:01:57.6]} 24. Qd5+ {[%clk 0:00:47.7]} 24... Kd7 {[%clk 0:01:57.4]} 25. Qb7+
{[%clk 0:00:47.6]} 25... Ke6 {[%clk 0:01:57.7]} 26. Qxa6 {[%clk 0:00:41.1]}
26... Rxf3 {[%clk 0:01:55.7]} 27. Kxf3 {[%clk 0:00:42]} 27... b4 {[%clk
0:01:54.2]} 28. Qc6 {[%clk 0:00:38.6]} 28... Rf8+ {[%clk 0:01:53.4]} 29. Kg2
{[%clk 0:00:38.8]} 29... Qf6 {[%clk 0:01:52.2]} 30. Rf1 {[%clk 0:00:29]} 30...
g5 {[%clk 0:01:47.5]} 31. a3 {[%clk 0:00:23.6]} 31... bxa3 {[%clk 0:01:46.8]}
32. bxa3 {[%clk 0:00:24]} 32... g4 {[%clk 0:01:34.7]} 33. a4 {[%clk 0:00:22.1]}
33... Qf3+ {[%clk 0:01:33.8]} 34. Qxf3 {[%clk 0:00:21.7]} 34... gxf3+ {[%clk
0:01:34.3]} 35. Kh3 {[%clk 0:00:20.7]} 35... Ra8 {[%clk 0:01:26.6]} 36. Ra1
{[%clk 0:00:19.7]} 36... e4 {[%clk 0:01:27.2]} 37. Kg4 {[%clk 0:00:11.7]} 37...
exd3 {[%clk 0:01:25.4]} 38. Kxf3 {[%clk 0:00:11.5]} 38... d5 {[%clk 0:01:25.9]}
39. cxd5+ {[%clk 0:00:07.4]} 39... Kxd5 {[%clk 0:01:26.3]} 40. Ke3 {[%clk
0:00:07.6]} 40... c4 {[%clk 0:01:26.3]} 41. Ra3 {[%clk 0:00:06.7]} 41... Ra5
{[%clk 0:01:22.8]} 42. f4 {[%clk 0:00:06]} 42... Kc5 {[%clk 0:01:23.1]} 43. g4
{[%clk 0:00:03.7]} 43... Kb4 {[%clk 0:01:23.2]} 44. Ra1 {[%clk 0:00:03.9]} 44...
Kc3 {[%clk 0:01:22.3]} 45. f5 {[%clk 0:00:03.5]} 45... Ra6 {[%clk 0:01:16.6]}
46. h4 {[%clk 0:00:02.4]} 46... Kc2 {[%clk 0:01:16.7]} 47. g5 {[%clk 0:00:02.3]}
47... hxg5 {[%clk 0:01:16.4]} 48. hxg5 {[%clk 0:00:02.5]} 48... c3 {[%clk
0:01:17.2]} 49. g6 {[%clk 0:00:02.3]} 49... d2 {[%clk 0:01:17.7]} 50. g7 {[%clk
0:00:01.6]} 50... Ra8 {[%clk 0:01:17]} 51. f6 {[%clk 0:00:01.8]} 51... Re8+
{[%clk 0:01:17.1]} 52. Kf2 {[%clk 0:00:01.4]} 52... d1=Q {[%clk 0:01:15.1]} 53.
Rxd1 {[%clk 0:00:01.1]} 53... Kxd1 {[%clk 0:01:16]} 54. f7 {[%clk 0:00:01.4]}
54... Re2+ {[%clk 0:01:12.9]} 55. Kf3 {[%clk 0:00:01.2]} 55... c2 {[%clk
0:01:13.8]} 56. f8=Q {[%clk 0:00:01.7]} 56... c1=Q {[%clk 0:01:14]} 57. Qd8+
{[%clk 0:00:02.1]} 57... Rd2 {[%clk 0:01:14.4]} 58. Qe7 {[%clk 0:00:01.9]} 58...
Qc3+ {[%clk 0:01:13.9]} 59. Kf4 {[%clk 0:00:01.7]} 59... Rf2+ {[%clk 0:01:12.6]}
60. Kg5 {[%clk 0:00:01.8]} 60... Rg2+ {[%clk 0:01:12.6]} 61. Kh6 {[%clk
0:00:01.7]} 61... Rh2+ {[%clk 0:01:12.7]} 62. Kg6 {[%clk 0:00:02]} 62... Rg2+
{[%clk 0:01:12.6]} 63. Kf7 {[%clk 0:00:02.6]} 63... Rxg7+ {[%clk 0:01:12.1]} 0-1

[Event "Early-Titled-Tuesday-Blitz-February-20-2024"]
[Site "Chess.com"]
[Date "2024.02.20"]
[Round "4"]
[White "jodarmarlon1985"]
[Black "m_ezat"]
[Result "0-1"]
[WhiteElo "2183"]
[BlackElo "2514"]
[TimeControl "180+1"]
[EndTime "8:39:31 PST"]
[Termination "m_ezat won on time"]

1. e4 {[%clk 0:03:00.9]} 1... e5 {[%clk 0:02:59.8]} 2. Nf3 {[%clk 0:03:00.8]}
2... Nc6 {[%clk 0:03:00]} 3. Bb5 {[%clk 0:03:01.5]} 3... Nge7 {[%clk 0:02:59.5]}
4. Nc3 {[%clk 0:03:01.1]} 4... d6 {[%clk 0:02:57.2]} 5. d4 {[%clk 0:03:01.4]}
5... Bd7 {[%clk 0:02:56.8]} 6. O-O {[%clk 0:03:00.5]} 6... a6 {[%clk 0:02:53.1]}
7. Be2 {[%clk 0:02:29.1]} 7... g6 {[%clk 0:02:48.7]} 8. Nd5 {[%clk 0:02:23.8]}
8... Bg7 {[%clk 0:02:47]} 9. Bg5 {[%clk 0:02:23]} 9... h6 {[%clk 0:02:43.4]} 10.
Bf6 {[%clk 0:02:21.2]} 10... O-O {[%clk 0:02:42.5]} 11. Nxe7+ {[%clk 0:02:03.3]}
11... Nxe7 {[%clk 0:02:40.9]} 12. Bxg7 {[%clk 0:02:02.8]} 12... Kxg7 {[%clk
0:02:39.4]} 13. dxe5 {[%clk 0:02:03.1]} 13... dxe5 {[%clk 0:02:29.5]} 14. Nxe5
{[%clk 0:02:04]} 14... Be6 {[%clk 0:02:29.7]} 15. Qxd8 {[%clk 0:01:56.4]} 15...
Rfxd8 {[%clk 0:02:28.8]} 16. Rfd1 {[%clk 0:01:56.9]} 16... f6 {[%clk 0:02:27.1]}
17. Bc4 {[%clk 0:01:45.8]} 17... fxe5 {[%clk 0:02:09.4]} 18. Bxe6 {[%clk
0:01:43.3]} 18... Kf6 {[%clk 0:02:08.4]} 19. Bb3 {[%clk 0:01:40.2]} 19... g5
{[%clk 0:02:08.2]} 20. f3 {[%clk 0:01:37.4]} 20... Ng6 {[%clk 0:02:05.8]} 21.
Kf2 {[%clk 0:01:36.7]} 21... Nf4 {[%clk 0:02:05.3]} 22. g3 {[%clk 0:01:34.8]}
22... Ng6 {[%clk 0:02:03]} 23. c3 {[%clk 0:01:26.1]} 23... Ne7 {[%clk
0:02:01.8]} 24. Rxd8 {[%clk 0:01:25.3]} 24... Rxd8 {[%clk 0:02:01]} 25. Rd1
{[%clk 0:01:26.2]} 25... Rxd1 {[%clk 0:02:01.1]} 26. Bxd1 {[%clk 0:01:27.1]}
26... Nc8 {[%clk 0:01:59.5]} 27. Ke3 {[%clk 0:01:26.8]} 27... Nd6 {[%clk
0:01:59.4]} 28. Be2 {[%clk 0:01:20.2]} 28... h5 {[%clk 0:01:56.8]} 29. f4 {[%clk
0:01:10.8]} 29... h4 {[%clk 0:01:55.2]} 30. f5 {[%clk 0:00:58.8]} 30... hxg3
{[%clk 0:01:54.4]} 31. hxg3 {[%clk 0:00:58.7]} 31... Nc8 {[%clk 0:01:47]} 32. b4
{[%clk 0:00:45.1]} 32... Ke7 {[%clk 0:01:44.2]} 33. Kf3 {[%clk 0:00:43.3]} 33...
Nd6 {[%clk 0:01:39.6]} 34. Bd3 {[%clk 0:00:42.8]} 34... Kf6 {[%clk 0:01:34.3]}
35. Kg4 {[%clk 0:00:39.3]} 35... Ne8 {[%clk 0:01:28.4]} 36. Kh5 {[%clk
0:00:37.6]} 36... Ng7+ {[%clk 0:01:23.8]} 37. Kh6 {[%clk 0:00:37.5]} 37... Ne8
{[%clk 0:01:22.3]} 38. a4 {[%clk 0:00:35.6]} 38... Nd6 {[%clk 0:01:19.9]} 39.
Kh7 {[%clk 0:00:35.2]} 39... Kf7 {[%clk 0:01:14.4]} 40. c4 {[%clk 0:00:34.6]}
40... Nc8 {[%clk 0:01:04.1]} 41. c5 {[%clk 0:00:33.2]} 41... Ne7 {[%clk
0:01:02]} 42. Bc4+ {[%clk 0:00:27.5]} 42... Kf6 {[%clk 0:01:02]} 43. g4 {[%clk
0:00:20.1]} 43... Nc6 {[%clk 0:01:00.1]} 44. Bd5 {[%clk 0:00:18.3]} 44... Nxb4
{[%clk 0:00:56.8]} 45. Bxb7 {[%clk 0:00:18.4]} 45... a5 {[%clk 0:00:57.6]} 46.
Kg8 {[%clk 0:00:13.4]} 46... Nd3 {[%clk 0:00:57.3]} 47. Kf8 {[%clk 0:00:05.8]}
47... Nxc5 {[%clk 0:00:50.5]} 48. Bc6 {[%clk 0:00:06.7]} 48... Nd3 {[%clk
0:00:49.4]} 49. Ke8 {[%clk 0:00:07]} 49... Nf2 {[%clk 0:00:49.7]} 50. Kd8 {[%clk
0:00:07.2]} 50... Nxg4 {[%clk 0:00:50.3]} 51. Kxc7 {[%clk 0:00:07.4]} 51... Ne3
{[%clk 0:00:47.7]} 52. Kb6 {[%clk 0:00:07.6]} 52... g4 {[%clk 0:00:47.8]} 53.
Bb5 {[%clk 0:00:06.1]} 53... g3 {[%clk 0:00:47.5]} 54. Bf1 {[%clk 0:00:02.3]}
54... Nxf1 {[%clk 0:00:47.6]} 55. Kxa5 {[%clk 0:00:03.2]} 55... g2 {[%clk
0:00:47.7]} 56. Kb6 {[%clk 0:00:04]} 56... g1=Q+ {[%clk 0:00:48]} 0-1

[Event "Early-Titled-Tuesday-Blitz-February-20-2024"]
[Site "Chess.com"]
[Date "2024.02.20"]
[Round "4"]
[White "Durarbayli"]
[Black "Rud_2008"]
[Result "1-0"]
[WhiteElo "2974"]
[BlackElo "2728"]
[TimeControl "180+1"]
[EndTime "8:39:32 PST"]
[Termination "Durarbayli won by checkmate"]

1. c4 {[%clk 0:03:00.9]} 1... e5 {[%clk 0:03:00.1]} 2. g3 {[%clk 0:03:00.3]}
2... c6 {[%clk 0:02:57.1]} 3. d4 {[%clk 0:03:00]} 3... e4 {[%clk 0:02:57.2]} 4.
d5 {[%clk 0:02:58.7]} 4... Bb4+ {[%clk 0:02:57.3]} 5. Bd2 {[%clk 0:02:58.3]}
5... Bxd2+ {[%clk 0:02:57]} 6. Qxd2 {[%clk 0:02:59.2]} 6... Nf6 {[%clk
0:02:57.6]} 7. Nc3 {[%clk 0:02:59.1]} 7... d6 {[%clk 0:02:57.9]} 8. Nh3 {[%clk
0:02:52.6]} 8... Qe7 {[%clk 0:02:53.5]} 9. Nf4 {[%clk 0:02:50.8]} 9... O-O
{[%clk 0:02:52.2]} 10. h4 {[%clk 0:02:25.1]} 10... Ng4 {[%clk 0:02:45]} 11. e3
{[%clk 0:02:14.4]} 11... Na6 {[%clk 0:02:44.4]} 12. O-O-O {[%clk 0:02:08.8]}
12... Rd8 {[%clk 0:02:34.1]} 13. h5 {[%clk 0:02:06.5]} 13... h6 {[%clk
0:02:23.2]} 14. Kb1 {[%clk 0:02:04]} 14... Bf5 {[%clk 0:02:21.2]} 15. Bh3 {[%clk
0:01:52.9]} 15... Qf6 {[%clk 0:02:04.6]} 16. Bxg4 {[%clk 0:01:22.1]} 16... Bxg4
{[%clk 0:02:05.5]} 17. Rc1 {[%clk 0:01:22.6]} 17... Bf3 {[%clk 0:01:59.9]} 18.
Rhg1 {[%clk 0:01:18.8]} 18... Nc5 {[%clk 0:01:57.6]} 19. g4 {[%clk 0:01:13]}
19... a5 {[%clk 0:01:54]} 20. Rg3 {[%clk 0:01:11.1]} 20... Re8 {[%clk
0:01:40.9]} 21. Rcg1 {[%clk 0:01:04.8]} 21... Re5 {[%clk 0:01:38.3]} 22. Qd4
{[%clk 0:01:01.6]} 22... a4 {[%clk 0:01:28.9]} 23. Nh3 {[%clk 0:00:55.6]} 23...
Nd3 {[%clk 0:00:27.5]} 24. g5 {[%clk 0:00:52.8]} 24... Qe7 {[%clk 0:00:27.5]}
25. dxc6 {[%clk 0:00:41.4]} 25... bxc6 {[%clk 0:00:28.4]} 26. gxh6 {[%clk
0:00:13.1]} 26... Qb7 {[%clk 0:00:09.2]} 27. Rxg7+ {[%clk 0:00:05.8]} 27... Kh8
{[%clk 0:00:09.8]} 28. Nb5 {[%clk 0:00:04.7]} 28... cxb5 {[%clk 0:00:09.1]} 29.
c5 {[%clk 0:00:04.8]} 29... Qd5 {[%clk 0:00:06.9]} 30. Ng5 {[%clk 0:00:03.6]}
30... Rf8 {[%clk 0:00:03.1]} 31. Qxd5 {[%clk 0:00:02.5]} 31... Rxd5 {[%clk
0:00:03.3]} 32. Rh7+ {[%clk 0:00:03.4]} 32... Kg8 {[%clk 0:00:03.8]} 33. Rg7+
{[%clk 0:00:04.3]} 33... Kh8 {[%clk 0:00:04.4]} 34. Nxf7+ {[%clk 0:00:04.2]}
34... Rxf7 {[%clk 0:00:05.3]} 35. Rxf7 {[%clk 0:00:05]} 35... dxc5 {[%clk
0:00:04.9]} 36. Rgg7 {[%clk 0:00:05.3]} 36... Rd6 {[%clk 0:00:01.5]} 37. Rh7+
{[%clk 0:00:04.8]} 37... Kg8 {[%clk 0:00:01.9]} 38. Rhg7+ {[%clk 0:00:05.7]}
38... Kh8 {[%clk 0:00:02.8]} 39. Rf8# {[%clk 0:00:06.6]} 1-0

[Event "Early-Titled-Tuesday-Blitz-February-20-2024"]
[Site "Chess.com"]
[Date "2024.02.20"]
[Round "4"]
[White "AvitalBor"]
[Black "Shuvalov"]
[Result "1-0"]
[WhiteElo "2751"]
[BlackElo "2539"]
[TimeControl "180+1"]
[EndTime "8:39:33 PST"]
[Termination "AvitalBor won by resignation"]

1. a3 {[%clk 0:03:00.9]} 1... e5 {[%clk 0:02:58.4]} 2. c4 {[%clk 0:03:00]} 2...
Nf6 {[%clk 0:02:55.8]} 3. Nc3 {[%clk 0:03:00.1]} 3... d5 {[%clk 0:02:53.1]} 4.
cxd5 {[%clk 0:02:59.9]} 4... Nxd5 {[%clk 0:02:54]} 5. g3 {[%clk 0:03:00.5]} 5...
Nxc3 {[%clk 0:02:48.5]} 6. bxc3 {[%clk 0:03:01.4]} 6... Bd6 {[%clk 0:02:42.2]}
7. Bg2 {[%clk 0:03:00.7]} 7... O-O {[%clk 0:02:42.2]} 8. Nf3 {[%clk 0:02:59.7]}
8... Nc6 {[%clk 0:02:41.5]} 9. d4 {[%clk 0:02:57.9]} 9... exd4 {[%clk 0:02:39]}
10. cxd4 {[%clk 0:02:58.8]} 10... Bf5 {[%clk 0:02:34.5]} 11. O-O {[%clk
0:02:58.6]} 11... Qe7 {[%clk 0:02:33.8]} 12. Bg5 {[%clk 0:02:53.3]} 12... Qd7
{[%clk 0:02:30.7]} 13. d5 {[%clk 0:02:50.4]} 13... Ne5 {[%clk 0:02:25.9]} 14.
Nd4 {[%clk 0:02:42.3]} 14... Bh3 {[%clk 0:02:25.1]} 15. Qb3 {[%clk 0:02:41.7]}
15... Bxg2 {[%clk 0:02:20.4]} 16. Kxg2 {[%clk 0:02:42]} 16... Rab8 {[%clk
0:02:13.2]} 17. e4 {[%clk 0:02:31.9]} 17... Rfe8 {[%clk 0:02:10.4]} 18. h3
{[%clk 0:02:28.3]} 18... Bc5 {[%clk 0:02:04.4]} 19. Rad1 {[%clk 0:02:26.9]}
19... c6 {[%clk 0:01:42.3]} 20. Nf5 {[%clk 0:02:15.4]} 20... Bf8 {[%clk
0:00:58.8]} 21. Bc1 {[%clk 0:01:47.7]} 21... cxd5 {[%clk 0:00:51.2]} 22. Rxd5
{[%clk 0:01:44.2]} 22... Qc6 {[%clk 0:00:51]} 23. Bb2 {[%clk 0:01:40.3]} 23...
Ng6 {[%clk 0:00:49]} 24. Rc1 {[%clk 0:01:27.9]} 24... Qe6 {[%clk 0:00:46]} 25.
f3 {[%clk 0:01:25]} 25... Rec8 {[%clk 0:00:39.9]} 26. Rxc8 {[%clk 0:01:21.5]}
26... Rxc8 {[%clk 0:00:39.4]} 27. h4 {[%clk 0:01:18.2]} 27... h5 {[%clk
0:00:38.4]} 28. Qxb7 {[%clk 0:00:56.3]} 28... Rc2+ {[%clk 0:00:37.9]} 29. Kh3
{[%clk 0:00:56.3]} 29... Ne7 {[%clk 0:00:34.1]} 30. Re5 {[%clk 0:00:26.8]} 30...
Qc4 {[%clk 0:00:33.8]} 31. Nxe7+ {[%clk 0:00:22.1]} 31... Bxe7 {[%clk 0:00:34]}
32. Qb8+ {[%clk 0:00:18.1]} 32... Bf8 {[%clk 0:00:32.5]} 33. Rxh5 {[%clk
0:00:19]} 33... Qc8+ {[%clk 0:00:16.5]} 34. Qxc8 {[%clk 0:00:18.6]} 34... Rxc8
{[%clk 0:00:17.4]} 35. Rb5 {[%clk 0:00:18.1]} 35... Rc2 {[%clk 0:00:16.3]} 36.
Kg4 {[%clk 0:00:17.6]} 36... f6 {[%clk 0:00:15.6]} 37. h5 {[%clk 0:00:17.9]}
37... Kf7 {[%clk 0:00:13.8]} 38. Kf5 {[%clk 0:00:18.1]} 38... Kg8 {[%clk
0:00:13.6]} 39. Rb7 {[%clk 0:00:17.4]} 39... Bc5 {[%clk 0:00:13]} 40. Kg6 {[%clk
0:00:16.1]} 40... Bb6 {[%clk 0:00:12.8]} 41. Rxg7+ {[%clk 0:00:15.3]} 41... Kf8
{[%clk 0:00:13.3]} 42. Bxf6 {[%clk 0:00:15.8]} 42... Rc6 {[%clk 0:00:12.9]} 43.
h6 {[%clk 0:00:14]} 43... Bd4 {[%clk 0:00:12.6]} 44. Rf7+ {[%clk 0:00:14.4]}
44... Ke8 {[%clk 0:00:12.2]} 45. h7 {[%clk 0:00:15]} 1-0

[Event "Early-Titled-Tuesday-Blitz-February-20-2024"]
[Site "Chess.com"]
[Date "2024.02.20"]
[Round "4"]
[White "LuisFSiles"]
[Black "BilicVladimir"]
[Result "0-1"]
[WhiteElo "2302"]
[BlackElo "2650"]
[TimeControl "180+1"]
[EndTime "8:39:36 PST"]
[Termination "BilicVladimir won by resignation"]

1. e4 {[%clk 0:03:00.9]} 1... e6 {[%clk 0:02:59.7]} 2. d4 {[%clk 0:03:00.4]}
2... d5 {[%clk 0:02:59.8]} 3. Nc3 {[%clk 0:02:59.2]} 3... Nf6 {[%clk 0:02:59]}
4. Bg5 {[%clk 0:02:56]} 4... Bb4 {[%clk 0:02:57.7]} 5. Ne2 {[%clk 0:02:53.7]}
5... dxe4 {[%clk 0:02:56.9]} 6. a3 {[%clk 0:02:49.8]} 6... Be7 {[%clk
0:02:56.4]} 7. g3 {[%clk 0:02:40.3]} 7... b6 {[%clk 0:02:50]} 8. Bg2 {[%clk
0:02:40.1]} 8... Bb7 {[%clk 0:02:50]} 9. O-O {[%clk 0:02:37.6]} 9... Nbd7 {[%clk
0:02:47.8]} 10. Re1 {[%clk 0:02:16]} 10... h6 {[%clk 0:02:47.1]} 11. Bf4 {[%clk
0:02:08.1]} 11... O-O {[%clk 0:02:43.1]} 12. Qd2 {[%clk 0:02:02.8]} 12... c5
{[%clk 0:02:37.8]} 13. dxc5 {[%clk 0:01:45.2]} 13... Nxc5 {[%clk 0:02:36.2]} 14.
Rad1 {[%clk 0:01:43.1]} 14... Qxd2 {[%clk 0:02:34.4]} 15. Rxd2 {[%clk
0:01:42.6]} 15... Rad8 {[%clk 0:02:30.9]} 16. Red1 {[%clk 0:01:42.2]} 16... Rxd2
{[%clk 0:02:29]} 17. Rxd2 {[%clk 0:01:42.3]} 17... Rd8 {[%clk 0:02:28.5]} 18.
Rxd8+ {[%clk 0:01:37.3]} 18... Bxd8 {[%clk 0:02:29.4]} 19. b4 {[%clk 0:01:22.6]}
19... Ncd7 {[%clk 0:02:28.7]} 20. Bd6 {[%clk 0:01:15.1]} 20... Ne8 {[%clk
0:02:17.5]} 21. Bf4 {[%clk 0:01:08]} 21... f5 {[%clk 0:02:14.2]} 22. Be3 {[%clk
0:01:01.9]} 22... Nd6 {[%clk 0:02:09.6]} 23. Nd4 {[%clk 0:00:58.9]} 23... Kf7
{[%clk 0:02:06.1]} 24. Ncb5 {[%clk 0:00:55.8]} 24... Nc8 {[%clk 0:01:59.1]} 25.
c4 {[%clk 0:00:47]} 25... a6 {[%clk 0:01:58.8]} 26. Nc3 {[%clk 0:00:46.2]} 26...
Nd6 {[%clk 0:01:54.6]} 27. Bf1 {[%clk 0:00:46.2]} 27... Ne5 {[%clk 0:01:50.1]}
28. c5 {[%clk 0:00:43.8]} 28... bxc5 {[%clk 0:01:50.2]} 29. bxc5 {[%clk
0:00:43.4]} 29... Ndc4 {[%clk 0:01:49.8]} 30. Bf4 {[%clk 0:00:33.8]} 30... g5
{[%clk 0:01:45.5]} 31. Bxe5 {[%clk 0:00:23.3]} 31... Nxe5 {[%clk 0:01:44.9]} 32.
Be2 {[%clk 0:00:20.4]} 32... Be7 {[%clk 0:01:37.1]} 33. Na4 {[%clk 0:00:20.6]}
33... Bc6 {[%clk 0:01:36.4]} 34. Nxc6 {[%clk 0:00:20.7]} 34... Nxc6 {[%clk
0:01:35.6]} 35. Bxa6 {[%clk 0:00:20.9]} 35... Nd4 {[%clk 0:01:18.3]} 36. Bb7
{[%clk 0:00:18.4]} 36... Ke8 {[%clk 0:01:13.1]} 37. Kf1 {[%clk 0:00:15.3]} 37...
Kd8 {[%clk 0:01:12.7]} 38. Ke1 {[%clk 0:00:14.1]} 38... Kc7 {[%clk 0:01:12.8]}
39. Ba8 {[%clk 0:00:12.9]} 39... Nc2+ {[%clk 0:01:12.2]} 40. Kd2 {[%clk
0:00:12.5]} 40... Nxa3 {[%clk 0:01:08.4]} 41. f3 {[%clk 0:00:12.7]} 41... exf3
{[%clk 0:00:59.6]} 42. Bxf3 {[%clk 0:00:13.6]} 42... Nc4+ {[%clk 0:00:59.2]} 43.
Kc3 {[%clk 0:00:12.9]} 43... Ne5 {[%clk 0:00:59.6]} 44. Be2 {[%clk 0:00:12.8]}
44... f4 {[%clk 0:00:53.5]} 45. gxf4 {[%clk 0:00:12.4]} 45... gxf4 {[%clk
0:00:53.5]} 46. Kd4 {[%clk 0:00:13.1]} 46... Nd7 {[%clk 0:00:52.8]} 47. Ke4
{[%clk 0:00:12.5]} 47... e5 {[%clk 0:00:50.3]} 48. Bg4 {[%clk 0:00:11]} 48...
Nf6+ {[%clk 0:00:47.6]} 49. Kf3 {[%clk 0:00:08.7]} 49... Nxg4 {[%clk 0:00:46.2]}
50. Kxg4 {[%clk 0:00:09.1]} 50... Kc6 {[%clk 0:00:46.7]} 51. Kf3 {[%clk
0:00:08.2]} 51... Bxc5 {[%clk 0:00:45.3]} 52. Ke4 {[%clk 0:00:07.3]} 52... Bd4
{[%clk 0:00:43.6]} 53. h4 {[%clk 0:00:06.9]} 53... Kb5 {[%clk 0:00:43.5]} 54. h5
{[%clk 0:00:04]} 0-1

[Event "Early-Titled-Tuesday-Blitz-February-20-2024"]
[Site "Chess.com"]
[Date "2024.02.20"]
[Round "4"]
[White "DKmirl"]
[Black "Actuary44"]
[Result "0-1"]
[WhiteElo "2318"]
[BlackElo "2518"]
[TimeControl "180+1"]
[EndTime "8:39:36 PST"]
[Termination "Actuary44 won on time"]

1. d4 {[%clk 0:03:00.9]} 1... Nf6 {[%clk 0:02:53.1]} 2. Nf3 {[%clk 0:03:01]}
2... g6 {[%clk 0:02:53.4]} 3. g3 {[%clk 0:03:01.5]} 3... Bg7 {[%clk 0:02:53.9]}
4. Bg2 {[%clk 0:03:02]} 4... d6 {[%clk 0:02:54.7]} 5. O-O {[%clk 0:03:02.4]}
5... O-O {[%clk 0:02:55.6]} 6. Nc3 {[%clk 0:03:02.3]} 6... Nc6 {[%clk
0:02:54.7]} 7. d5 {[%clk 0:02:57.7]} 7... Nb4 {[%clk 0:02:53]} 8. a3 {[%clk
0:02:42.2]} 8... Na6 {[%clk 0:02:52.8]} 9. Be3 {[%clk 0:02:41.2]} 9... e5 {[%clk
0:02:49.5]} 10. Bg5 {[%clk 0:02:28.1]} 10... Nc5 {[%clk 0:02:43]} 11. Nd2 {[%clk
0:02:20.5]} 11... h6 {[%clk 0:02:40.1]} 12. Bxf6 {[%clk 0:01:56.6]} 12... Bxf6
{[%clk 0:02:41]} 13. Nde4 {[%clk 0:01:57.1]} 13... Nxe4 {[%clk 0:02:40.6]} 14.
Nxe4 {[%clk 0:01:57.6]} 14... Bg7 {[%clk 0:02:41.2]} 15. c4 {[%clk 0:01:55.6]}
15... f5 {[%clk 0:02:41.1]} 16. Nc3 {[%clk 0:01:55.8]} 16... b6 {[%clk
0:02:35.6]} 17. Qc2 {[%clk 0:01:52.6]} 17... e4 {[%clk 0:02:24.1]} 18. b4 {[%clk
0:01:50.3]} 18... Qf6 {[%clk 0:02:16.2]} 19. Rac1 {[%clk 0:01:49.3]} 19... a5
{[%clk 0:01:36.9]} 20. c5 {[%clk 0:01:01.4]} 20... axb4 {[%clk 0:01:35.7]} 21.
axb4 {[%clk 0:01:00.3]} 21... bxc5 {[%clk 0:01:31.4]} 22. bxc5 {[%clk
0:00:58.3]} 22... Ba6 {[%clk 0:01:28.6]} 23. Rfe1 {[%clk 0:00:38.2]} 23... Qd4
{[%clk 0:01:09.8]} 24. c6 {[%clk 0:00:20.5]} 24... Rfb8 {[%clk 0:01:02]} 25. e3
{[%clk 0:00:20.8]} 25... Qc5 {[%clk 0:00:52.3]} 26. Bf1 {[%clk 0:00:20.4]} 26...
Bxf1 {[%clk 0:00:44.4]} 27. Rxf1 {[%clk 0:00:20.7]} 27... Ra3 {[%clk 0:00:40.7]}
28. Nb1 {[%clk 0:00:19.6]} 28... Qxc2 {[%clk 0:00:38.6]} 29. Rxc2 {[%clk
0:00:19.7]} 29... Rd3 {[%clk 0:00:39.2]} 30. Rd2 {[%clk 0:00:16.4]} 30... Rxb1
{[%clk 0:00:38.7]} 31. Rxb1 {[%clk 0:00:11.8]} 31... Rxd2 {[%clk 0:00:39]} 32.
Rb8+ {[%clk 0:00:09.8]} 32... Kh7 {[%clk 0:00:28.9]} 33. Rb7 {[%clk 0:00:09.3]}
33... Rxd5 {[%clk 0:00:29.2]} 34. Rxc7 {[%clk 0:00:09.4]} 34... Rc5 {[%clk
0:00:29.2]} 35. Rc8 {[%clk 0:00:08.8]} 35... d5 {[%clk 0:00:28.4]} 36. Kf1
{[%clk 0:00:07.4]} 36... Rc2 {[%clk 0:00:26.5]} 37. Ke1 {[%clk 0:00:06.9]} 37...
Be5 {[%clk 0:00:22.2]} 38. Kd1 {[%clk 0:00:03]} 38... Rxf2 {[%clk 0:00:22]} 39.
Re8 {[%clk 0:00:02.5]} 39... Bd6 {[%clk 0:00:15.3]} 40. Re6 {[%clk 0:00:01.8]}
40... Bb8 {[%clk 0:00:14.2]} 0-1